Workbook

Sheet Sheet1
A1: 附件1
A2: 天门市2024年巩固拓展脱贫攻坚成果 支持产业发展新型农业经营主体拟奖励扶持汇总表
A3: 乡镇 | B3: 新型农业经营主体全称 | C3: 带动脱贫户、监测对象务工人数 | D3: 奖补资金类别 | F3: 经营主体合计奖补 (万元) | G3: 备注
D4: 新发展农产品加工项目奖补 （万元） | E4: 带动务工奖补（万元）
A5: 岳口镇 | B5: 天门市金色农谷农产品种植专业合作社 | C5: 12 | D5: 0 | E5: 0.6 | F5: 0.6
A6: 岳口镇 | B6: 天门市岳口镇泽华家庭农场 | C6: 14 | D6: 0 | E6: 0.7 | F6: 0.7
A7: 岳口镇 | B7: 天门市岳口镇华惠中药材种植专业合作社 | C7: 15 | D7: 0 | E7: 0.75 | F7: 0.75
A8: 岳口镇 | B8: 天门市兴旺隆生态农业专业合作社 | C8: 8 | D8: 0 | E8: 0.4 | F8: 0.4
A9: 岳口镇 | B9: 天门市岳口镇彩琼农业专业合作社 | C9: 24 | D9: 0 | E9: 1.2 | F9: 1.2
A10: 岳口镇 | B10: 天门市果然甜生态家庭农场 | C10: 21 | D10: 0 | E10: 1.05 | F10: 1.05
A11: 岳口镇 | B11: 天门市丰庆特色农产品产销专业合作社 | C11: 14 | D11: 0 | E11: 0.7 | F11: 0.7
A12: 岳口镇 | B12: 天门市楚惠种植专业合作社 | C12: 20 | D12: 0 | E12: 1 | F12: 1
A13: 岳口镇 | B13: 天门市好苗头种植专业合作社 | C13: 30 | D13: 0 | E13: 1.5 | F13: 1.5
A14: 岳口镇 | B14: 天门市交媒蔬菜种植专业合作社 | C14: 10 | D14: 0 | E14: 0.5 | F14: 0.5
A15: 黄潭镇 | B15: 天门市黄潭镇群星泽龙农产品种植专业合作社 | C15: 2 | D15: 0 | E15: 0.1 | F15: 0.1
A16: 黄潭镇 | B16: 天门市黄潭少军半夏种植专业合作社 | C16: 6 | D16: 0 | E16: 0.3 | F16: 0.3
A17: 张港镇 | B17: 天门市落心蔬菜产销专业合作社 | C17: 6 | D17: 0 | E17: 0.3 | F17: 0.3
A18: 张港镇 | B18: 天门市新农春甜玉米专业合作社 | C18: 7 | D18: 0 | E18: 0.35 | F18: 0.35
A19: 多宝镇 | B19: 天门市宇辰农产品种植专业合作社 | C19: 5 | D19: 0 | E19: 0.25 | F19: 0.25
A20: 佛子山镇 | B20: 天门市康裕生态农业专业合作社 | C20: 10 | D20: 0 | E20: 0.5 | F20: 0.5
A21: 佛子山镇 | B21: 天门市应华家庭农场 | C21: 6 | D21: 0 | E21: 0.3 | F21: 0.3
A22: 佛子山镇 | B22: 天门市宝隆生态养殖专业合作社 | C22: 10 | D22: 0 | E22: 0.5 | F22: 0.5
A23: 佛子山镇 | B23: 天门市佛子山镇友顺水稻种植专业合作社 | C23: 11 | D23: 0 | E23: 0.55 | F23: 0.55
A24: 佛子山镇 | B24: 天门市桃芳家庭农场 | C24: 8 | D24: 0 | E24: 0.4 | F24: 0.4
A25: 佛子山镇 | B25: 天门市佛子山建林家庭农场 | C25: 10 | D25: 0 | E25: 0.5 | F25: 0.5
A26: 佛子山镇 | B26: 天门市佛子山镇洪家湖水产养殖专业合作社 | C26: 8 | D26: 0 | E26: 0.4 | F26: 0.4
A27: 佛子山镇 | B27: 湖北庄品健实业（集团）有限公司 | C27: 6 | D27: 0 | E27: 0.3 | F27: 0.3
A28: 佛子山镇 | B28: 湖北省天门市青龙米业有限公司 | C28: 1 | D28: 0 | E28: 0.05 | F28: 0.05
A29: 佛子山镇 | B29: 天门市佛子山镇斌波农产品种植专业合作社 | C29: 5 | D29: 0 | E29: 0.25 | F29: 0.25
A30: 佛子山镇 | B30: 天门市陆子生态农业专业合作社 | C30: 5 | D30: 0 | E30: 0.25 | F30: 0.25
A31: 蒋场镇 | B31: 天门市明顺农产品产销专业合作社 | C31: 10 | E31: 0.5 | F31: 0.5
A32: 蒋场镇 | B32: 天门蓝采园农业有限公司 | C32: 6 | D32: 5 | E32: 0.3 | F32: 5.3
A33: 净潭乡 | B33: 天门市净潭乡状元农产品产销专业合作社 | C33: 7 | D33: 0 | E33: 0.35 | F33: 0.35
A34: 净潭乡 | B34: 天门市净潭乡波华农机专业合作社 | C34: 8 | D34: 0 | E34: 0.4 | F34: 0.4
A35: 净潭乡 | B35: 天门市莲云农产品种植专业合作社 | C35: 9 | D35: 0 | E35: 0.45 | F35: 0.45
A36: 石家河 | B36: 天门市贾齐家庭农场 | C36: 12 | D36: 0 | E36: 0.6 | F36: 0.6
A37: 横林镇 | B37: 天门市横林镇双盈种植专业合作社 | C37: 16 | D37: 0 | E37: 0.8 | F37: 0.8
A38: 横林镇 | B38: 天门市横林镇虎章垸种植农民专业合作社 | C38: 10 | D38: 0 | E38: 0.5 | F38: 0.5
A39: 杨林街道 | B39: 天门水乡园食品有限公司 | C39: 10 | D39: 0 | E39: 0.5 | F39: 0.5
A40: 拖市镇 | B40: 天门市鸿远马铃薯专业合作社 | C40: 18 | D40: 0 | E40: 0.9 | F40: 0.9
A41: 拖市镇 | B41: 天门市拖市镇畅亮家庭农场 | C41: 15 | D41: 0 | E41: 0.75 | F41: 0.75
A42: 拖市镇 | B42: 天门市胖胖蔬菜种植专业合作社 | C42: 10 | D42: 0 | E42: 0.5 | F42: 0.5
A43: 拖市镇 | B43: 天门市永辉农产品产销专业合作社 | C43: 18 | D43: 0 | E43: 0.9 | F43: 0.9
A44: 拖市镇 | B44: 天门市凯文农产品种植专业合作社 | C44: 11 | D44: 0 | E44: 0.55 | F44: 0.55
A45: 拖市镇 | B45: 天门市新慧宇农产品产销专业合作社 | C45: 9 | D45: 0.00 | E45: 0.45 | F45: 0.45
A46: 拖市镇 | B46: 天门市佳烨农业发展有限公司 | C46: 10 | D46: 5.00 | E46: 0.5 | F46: 5.5
A47: 汪场镇 | B47: 天门市普济种植基地 | C47: 20 | D47: 0 | E47: 1 | F47: =SUM(D47:E47) -> 1
A48: 汪场镇 | B48: 天门市广林农产品种植专业合作社 | C48: 11 | D48: 0 | E48: 0.55 | F48: =SUM(D48:E48) -> 0.55
A49: 汪场镇 | B49: 天门市一枝花中药材种植专业合作社 | C49: 5 | D49: 0 | E49: 0.25 | F49: =SUM(D49:E49) -> 0.25
A50: 汪场镇 | B50: 天门市汪场镇雷场荆半夏种植专业合作社 | C50: 5 | D50: 0 | E50: 0.25 | F50: =SUM(D50:E50) -> 0.25
A51: 汪场镇 | B51: 天门市李胖子蔬菜种植专业合作社 | C51: 11 | D51: 0 | E51: 0.55 | F51: =SUM(D51:E51) -> 0.55
A52: 汪场镇 | B52: 天门市榨屋台种植家庭农场（个体工商户） | C52: 7 | D52: 0 | E52: 0.35 | F52: =SUM(D52:E52) -> 0.35
A53: 汪场镇 | B53: 天门市十义种植家庭农场 | C53: 6 | D53: 0 | E53: 0.3 | F53: 0.3
A54: 汪场镇 | B54: 天门市杨利君种植专业合作社 | C54: 6 | D54: 0 | E54: 0.3 | F54: 0.3
A55: 渔薪镇 | B55: 天门市田园丰农机服务专业合作社 | C55: 16 | D55: 0 | E55: 0.8 | F55: 0.8
A56: 渔薪镇 | B56: 天门市快乐田园蔬菜种植专业合作社 | C56: 13 | D56: 0 | E56: 0.65 | F56: 0.65
A57: 干驿镇 | B57: 天门市场南水稻种植专业合作社 | C57: 8 | D57: 0 | E57: 0.4 | F57: 0.4
A58: 干驿镇 | B58: 天门市夕阳红水稻种植专业合作社 | C58: 10 | D58: 0 | E58: 0.5 | F58: 0.5
A59: 干驿镇 | B59: 天门市铁兵农产品种植专业合作社 | C59: 8 | D59: 0 | E59: 0.4 | F59: 0.4
A60: 干驿镇 | B60: 天门市明立养殖专业合作社 | C60: 10 | D60: 0 | E60: 0.5 | F60: 0.5
A61: 干驿镇 | B61: 天门市昌隆兴农产品种植专业合作社 | C61: 6 | D61: 0 | E61: 0.3 | F61: 0.3
A62: 干驿镇 | B62: 天门市文涛农产品种植专业合作社 | C62: 12 | D62: 0 | E62: 0.6 | F62: 0.6
A63: 干驿镇 | B63: 天门市亮云水稻种植专业合作社 | C63: 10 | D63: 0 | E63: 0.5 | F63: 0.5
A64: 干驿镇 | B64: 天门市干驿镇城郊农机专业合作社 | C64: 8 | D64: 0 | E64: 0.4 | F64: 0.4
A65: 干驿镇 | B65: 天门市李国兵稻虾套养家庭农场 | C65: 9 | D65: 0 | E65: 0.45 | F65: 0.45
A66: 九真镇 | B66: 天门市九真镇刘红养殖家庭农场 | C66: 4 | D66: 0 | E66: 0.2 | F66: 0.2
A67: 九真镇 | B67: 天门市惠丰水稻种植专业合作社 | C67: 9 | D67: 0 | E67: 0.45 | F67: 0.45
A68: 彭市镇 | B68: 天门市彭市镇鳞丰家庭农场 | C68: 10 | D68: 0 | E68: 0.5 | F68: =SUM(D68:E68) -> 0.5
A69: 彭市镇 | B69: 天门市彭市镇米芈水稻种植专业合作社 | C69: 18 | D69: 0 | E69: 0.9 | F69: =SUM(D69:E69) -> 0.9
A70: 彭市镇 | B70: 天门市黄沙湖水产养殖专业合作社 | C70: 17 | D70: 0 | E70: 0.85 | F70: =SUM(D70:E70) -> 0.85
A71: 彭市镇 | B71: 天门市彭市镇菊红种养殖专业合作社 | C71: 10 | D71: 5 | E71: 0.5 | F71: =SUM(D71:E71) -> 5.5
A72: 皂市镇 | B72: 天门市小兵家庭农场 | C72: 15 | D72: 0 | E72: 0.75 | F72: 0.75
A73: 皂市镇 | B73: 天门市盛敏种养殖专业合作社 | C73: 11 | D73: 0 | E73: 0.55 | F73: 0.55
A74: 皂市镇 | B74: 天门市杨务苟家庭农场 | C74: 11 | D74: 0 | E74: 0.55 | F74: 0.55
A75: 皂市镇 | B75: 天门市文喆家庭农场 | C75: 17 | D75: 0 | E75: 0.85 | F75: 0.85
A76: 皂市镇 | B76: 天门市众合瓜蒌种植专业合作社 | C76: 14 | D76: 0 | E76: 0.7 | F76: 0.7
A77: 皂市镇 | B77: 天门市陆羽茶业有限公司 | C77: 6 | D77: 5 | E77: 0.3 | F77: 5.3
A78: 皂市镇 | B78: 天门市丰源秸秆专业合作社 | C78: 21 | D78: 0 | E78: 1.05 | F78: 1.05
A79: 皂市镇 | B79: 天门市伟兵家庭农场 | C79: 14 | D79: 0 | E79: 0.7 | F79: 0.7
A80: 皂市镇 | B80: 天门楚俊生态农业发展有限公司 | C80: 11 | D80: 0 | E80: 0.55 | F80: 0.55
A81: 皂市镇 | B81: 天门市农福源农业专业合作社 | C81: 6 | D81: 0 | E81: 0.3 | F81: 0.3
A82: 胡市镇 | B82: 天门市共赢水稻种植专业合作社 | C82: 10 | D82: 0 | E82: 0.5 | F82: 0.5
A83: 胡市镇 | B83: 天门市佳羽禽业有限公司 | C83: 7 | D83: 0 | E83: 0.35 | F83: 0.35
A84: 麻洋镇 | B84: 天门市少驰农业科技有限公司 | C84: 6 | D84: 0 | E84: =C84*0.05 -> 0.3 | F84: =E84 -> 0.3
A85: 麻洋镇 | B85: 天门市麻洋镇军峰农产品种植专业合作社 | C85: 7 | D85: 0 | E85: =C85*0.05 -> 0.35 | F85: 0.35
A86: 合计（81） | C86: =SUM(C5:C85) -> 858 | D86: =SUM(D5:D85) -> 20 | E86: 42.9 | F86: =SUM(F5:F85) -> 62.9

Sheet Sheet2
